{"text_format":"2","workbook":"xlsx","n_sheets":4,"sheets":["Preço Médio Combustível","CUSTO COMBUSTÍVEL.LAVAGEM","CUSTO MANUTENÇÃO","LEVANTAMENTO TAXA DE DESCONTO"],"not_rendered":{"charts":0,"images":1,"macros":0,"external_links":1,"defined_names":0,"comments":0,"pivot_tables":0},"unopened":[],"bounds":{"document_bytes":16777216,"sheet_cells":100000,"run_cost":"one","rows_first":2000,"rows_last":500,"rows_between":2000,"halvings":0,"cell_chars":16384,"cell_head_chars":4096},"cells_cut":0,"cells_raw":0,"read":"whole","date_system":"1900"}

{"sheet":"Preço Médio Combustível","index":0,"n_rows":14,"n_cols":12,"rows_kept":14,"cut":false,"hidden":false,"merged":[]}
["LEVANTAMENTO DE PREÇO DE COMBUSTÍVEL"]
["AGÊNCIA NACIONAL DO PETRÓLEO, GÁS NATURAL E BIOCOMBUSTÍVEIS - ANP"]
["SUPERINTENDÊNCIA DE DEFESA DA CONCORRÊNCIA"]
["LEVANTAMENTO DE PREÇOS DE COMBUSTÍVEIS"]
[]
[]
["INTERVALO DE TEMPO: SEMANAL"]
["COMBUSTÍVEL: TODOS"]
["TIPO RELATÓRIO: ESTADOS"]
[]
["DATA INICIAL","DATA FINAL","REGIAO","ESTADOS","PRODUTO","NÚMERO DE POSTOS PESQUISADOS","UNIDADE DE MEDIDA","PREÇO MÉDIO REVENDA","DESVIO PADRÃO REVENDA","PREÇO MÍNIMO REVENDA","PREÇO MÁXIMO REVENDA","COEF DE VARIAÇÃO REVENDA"]
["2026-04-19","2026-04-25","NORDESTE","CEARA","ETANOL HIDRATADO",118,"R$/l",5.44,0.22600000000000001,4.99,6.19,4.1000000000000002E-2]
["2026-04-19","2026-04-25","NORDESTE","CEARA","GASOLINA ADITIVADA",113,"R$/l",7.14,0.26400000000000001,6.09,7.49,3.6999999999999998E-2]
["2026-04-19","2026-04-25","NORDESTE","CEARA","OLEO DIESEL S10",121,"R$/l",7.13,0.36899999999999999,6.15,7.99,5.1999999999999998E-2]

{"sheet":"CUSTO COMBUSTÍVEL.LAVAGEM","index":1,"n_rows":45,"n_cols":9,"rows_kept":45,"cut":false,"hidden":false,"merged":[[3,4,3,7],[24,1,30,3],[29,4,30,4],[37,5,37,6],[0,4,1,7]]}
[{"$nulls":4},"COMPOSIÇÃO CUSTO COMBUSTÍVEL "]
[]
[]
[{"$nulls":4},"FROTA"]
[{"$nulls":4},"PERÍODO","REG 7C09","REG 7C15","REG 9E56"]
[{"$nulls":4},"2025-08-04",99982,90275,42510]
[{"$nulls":4},"2026-04-15",133450,113070,75600]
[]
[{"$nulls":5},"REG 7C09","REG 7C15","REG 9E56","MÉDIA"]
[{"$nulls":4},"KM RODADOS",{"$f":"F7-F6","v":33468},{"$f":"G7-G6","v":22795},{"$f":"H7-H6","v":33090},{"$f":"AVERAGE(F10:H10)","v":29784.333333333332}]
[{"$nulls":4},"MÉDIA DE KM RODADOS",{"$f":"F10/8","v":4183.5},{"$f":"G10/8","v":2849.375},{"$f":"H10/8","v":4136.25},{"$f":"AVERAGE(F11:H11)","v":3723.0416666666665}]
[{"$nulls":4},"USO LITRO MÊS",{"$f":"F11/C13","v":398.42857142857144},{"$f":"G11/C13","v":271.36904761904759},{"$f":"H11/C13","v":393.92857142857144},{"$f":"(F12+G12+H12)/3","v":354.57539682539681}]
[null,"Consumo  MÉDIO Pick-up",10.5,null,"CUSTO MÊS",{"$f":"F12*C14","v":2840.7957142857144},{"$f":"G12*C14","v":1934.8613095238093},{"$f":"H12*C14","v":2808.7107142857144},{"$f":"(F13+G13+H13)/3","v":2528.1225793650792}]
[null,"Preço médio diesel",7.13]
[{"$nulls":4},"TOTAL  LITRO MÊS - FROTA ATUAL",{"$f":"F12+G12+H12","v":1063.7261904761904}]
[{"$nulls":4},"TOTAL  CUSTO MÊS - FROTA ATUAL",{"$f":"F13+G13+H13","v":7584.3677380952377}]
[]
[{"$nulls":4},"ESTIMATIVA LITRO MÊS - CAMINHONETE PREVISTA PARA AQUISIÇÃO",354.58]
[{"$nulls":4},"ESTIMATIVA CUSTO MÊS - CAMINHONETE PREVISTA PARA AQUISIÇÃO",2528.12]
[]
[{"$nulls":4},"TOTAL ANUAL LITRO  - FROTA + CAMINHONTE PREVISTA PARA  AQUISIÇÃO",17019.62]
[{"$nulls":4},"TOTAL ANUAL CUSTO - FROTA + CAMINHONETE PREVISTA PARA AQUISIÇÃO",121349.89059999998]
[]
[]
[null,"25372 - Controle de Abastecimento de Veículos",null,null,"TPO DE COMBUSTÍVEL ","Litros Mensal","Litros Anual","PREÇO MÉDIO REVENDA","CUSTO ANUAL"]
[{"$nulls":4},"DIESEL",1418.31,17019.62,7.13,{"$f":"H26*G26","v":121349.89059999998}]
[{"$nulls":4},"GASOLINA","*200",2400,{"$f":"[1]ESTADOS!H43","v":7.14},{"$f":"G27*H27","v":17136}]
[{"$nulls":4},"ETANOL","**50",600,{"$f":"[1]ESTADOS!H16","v":5.44},{"$f":"G28*H28","v":3264.0000000000005}]
[]
[{"$nulls":4},"LAVAGEM VEICULAR","Quantidade mensal","Quantidade anual","PREÇO MÉDIO DE MERCADO","CUSTO ANUAL"]
[{"$nulls":5},"***10",120,106,{"$f":"H31*G31","v":12720}]
[{"$nulls":4},"*Como não há histórico de utilização de veículo de passeio, a quantidade estimada foi calculada com base no uso em vias urbanas e rodovias."]
[{"$nulls":4},"**Como não há histórico de utilização de veículo de passeio, a quantidade estimada foi calculada com base no uso em vias urbanas e rodovias, como suplementação do uso do combustível à gasolina"]
[{"$nulls":4},"***Considerando 2 lavagens por mês para cada veículo - 5 veículos"]
[]
[]
[]
[{"$nulls":5},"Lavagem veicular"]
[{"$nulls":5},"Fonte","Valor R$  "]
[{"$nulls":5},"Edital Inmetro",100]
[{"$nulls":5},"NF DOM VICTOR - local",120]
[{"$nulls":5},"Carwash ecologico Fortaleza - local",120]
[{"$nulls":5},"Painel de preço",84.02]
[]
[{"$nulls":5},"Média",106]

{"sheet":"CUSTO MANUTENÇÃO","index":2,"n_rows":8,"n_cols":6,"rows_kept":8,"cut":false,"hidden":false,"merged":[[3,1,3,3],[3,5,3,14],[1,2,1,5]]}
[]
[null,null,"COMPOSIÇÃO CUSTO DE MANUTENÇÃO"]
[]
[null,"MANUTENÇÃO",null,null,null,"** Metodologia de cálculo prevista no contrato 7.0018.00/2024 – CODEVASF, em execução na 7ª Superintendência Regional, em Teresina/PI, a qual estima os custos de manutenção com base na quilometragem rodada dos veículos"]
[null,"Custo de manutenção por km rodado **",0.42,"7ª SR**"]
[]
[null,"(A) MÉDIA KM RODADO FROTA MÊS","(B) CUSTO MANUTENÇÃO KM ","(C) TOTAL POR VEICULO =  (AxB)","(D) CUSTO FROTA MÊS = (C x 5)","CUSTO ANUAL =  (D x 12)"]
[null,3723,0.42,{"$f":"C8*B8","v":1563.6599999999999},{"$f":"D8*5","v":7818.2999999999993},{"$f":"E8*12","v":93819.599999999991}]

{"sheet":"LEVANTAMENTO TAXA DE DESCONTO","index":3,"n_rows":20,"n_cols":6,"rows_kept":20,"cut":false,"hidden":false,"merged":[[1,2,1,5]]}
[]
[null,null,"COMPOSIÇÃO TAXA DE DESCONTO"]
[]
[]
[null,null,"Órgão","Proceso referência ","EDITAL ","Taxa de desconto"]
[null,null,"JUSTIÇA FEDERAL DE PRIMEIRO GRAU - SEÇÃO JUDICIÁRIA DO RIO GRANDE DO SUL (UASG 090020","0000543-96.2026.4.04.8001","EDITAL PREGÃO Nº 4/2026",5.11E-2]
[null,null,"INSTITUTO FEDERAL DO CEARÁ – CAMPUS CAUCAIA","23486.000099/2026-87","PREGÃO ELETRONICO Nº 96001/2026",5.21E-2]
[null,null,"JUSTIÇA FEDERAL DE PRIMEIRO GRAU NA BAHIA- BA","0015425-72.2025.4.01.8004","PREGÃO ELETRÔNICO N° 90003/2026",5.1700000000000003E-2]
[null,null,"SUPERINTENDÊNCIA FEDERAL DE AGRICULTURA EM RORAIMA - SFA-RR","21048.000007/2025-11","PREGÃO ELETRÔNICO - SRP Nº90001/2025",4.4200000000000003E-2]
[null,null,"Procuradoria Regional da República da 1ª Região – PRR1","N° 1.01.000.000224/2025-95","PREGÃO ELETRÔNICO Nº 90002/2026)",0.02]
[{"$nulls":4},"MÉDIA ARITIMÉTICA",{"$f":"AVERAGE(F6:F10)","v":4.3819999999999998E-2}]
[{"$nulls":4},"MEDIANA",5.11E-2]
[]
[null,null,"Órgão","Proceso referência ","EDITAL ","Taxa de desconto"]
[null,null,"SUPERINTENDÊNCIA FEDERAL DE AGRICULTURA EM RORAIMA - SFA-RR","21048.000007/2025-11","PREGÃO ELETRÔNICO - SRP Nº90001/2025",0.08]
[null,null,"INSTITUTO FEDERAL DE EDUCAÇÃO, CIÊNCIA E TECNOLOGIA DO AMAPÁ - AP","23228.001001.2025-79","PREGÃO ELETRÔNICO N° 90006/2026",0.31]
[null,null,"Procuradoria Regional da República da 1ª Região – PRR1","N° 1.01.000.000224/2025-95","PREGÃO ELETRÔNICO Nº 90002/2026)",0.02]
[null,null,"UNIVERSIDADE FEDERAL DO CARIRI","N° 23507.005887/2025-93","PREGÃO ELETRÔNICO 90001/2026",5.5E-2]
[{"$nulls":4},"MÉDIA ARITIMÉTICA",0.11630000000000001]
[{"$nulls":4},"MEDIANA",6.7500000000000004E-2]